Workbook

Sheet Calculator
F2: 2018 Expected Contribution Range Calculator
N5: Expected Contribution Range
A6: Slope= | B6: 1.0200425 | I6: Career Path | J6: Broad-band | K6: Max Pay | L6: Retained Pay? | N6: Upper Rail | O6: Standard Pay Line | P6: Lower Rail
A7: GS-1/1 Base Salary= | B7: 18785 | G7: Enter Base Pay/Retained Pay | H7: 130000 | I7: NH | J7: 4 | K7: =VLOOKUP($J$7,MaxPay,MATCH($I$7,PaySched,1)+1,FALSE) -> 136659 | L7: =IF($H$7>$K$7,"Yes","No") -> No | M7: Expected Contribution Range = | N7: =CEILING((LN($O$8)-LN(intercept*1.08))/LN(slope),1) -> 94 | O7: =(LN($O$8)-LN(intercept))/LN(slope) -> 97.48272524 | P7: =FLOOR((LN($O$8)-LN(intercept*0.92))/LN(slope),1) -> 101
I8: Click on Boxes for Dropdown List to Select | N8: Pay Used in Calculation: | O8: =IF($L$7="Yes",$K$7,$H$7) -> 130000

Sheet NPR SPL Table
A1: Normal Pay Range and Standard Pay Line for 2018
A2: 15442 | B2: =slope -> 1.0200425 | D2: (Based on 1.4% Increase)
B4: OCS | C4: SPL | D4: *0.92 Lower Rail | E4: *1.08 Upper Rail | G4: OCS | H4: SPL | I4: *0.92 Lower Rail | J4: *1.08 Upper Rail
A6: GS01/1 | B6: 0 | C6: =intercept -> 18785 | D6: =SUM(C6*0.92) -> 17282.2 | E6: =SUM(C6*1.08) -> 20287.8
B7: 1 | C7: =SUM(C6*$B$2) -> 19161.49836 | D7: =SUM(C7*0.92) -> 17628.57849 | E7: =SUM(C7*1.08) -> 20694.41823 | G7: 51 | H7: =SUM(C56*$B$2) -> 51682.417 | I7: =SUM(H7*0.92) -> 47547.82364 | J7: =SUM(H7*1.08) -> 55817.01035
B8: 2 | C8: =SUM(C7*$B$2) -> 19545.54269 | D8: =SUM(C8*0.92) -> 17981.89928 | E8: =SUM(C8*1.08) -> 21109.18611 | G8: 52 | H8: =SUM(H7*$B$2) -> 52718.26184 | I8: 48500.80089 | J8: 56935.72278
B9: 3 | C9: 19937.28423 | D9: 18342.30149 | E9: 21532.26697 | G9: 53 | H9: =SUM(H8*$B$2) -> 53774.8676 | I9: 49472.87819 | J9: 58076.85701
B10: 4 | C10: 20336.87725 | D10: 18709.92707 | E10: 21963.82743 | G10: 54 | H10: 54852.65038 | I10: 50464.43835 | J10: 59240.86242
B11: 5 | C11: 20744.47911 | D11: 19084.92079 | E11: 22404.03744 | G11: 55 | H11: 55952.03463 | I11: 51475.87186 | J11: 60428.1974
B12: 6 | C12: 21160.25034 | D12: 19467.43031 | E12: 22853.07036 | G12: 56 | H12: 57073.45328 | I12: 52507.57702 | J12: 61639.32955
B13: 7 | C13: 21584.35465 | D13: 19857.60628 | E13: 23311.10303 | G13: 57 | H13: 58217.34797 | I13: 53559.96013 | J13: 62874.73581
B14: 8 | C14: 22016.95908 | D14: 20255.60236 | E14: 23778.31581 | G14: 58 | H14: 59384.16917 | I14: 54633.43563 | J14: 64134.9027
B15: 9 | C15: 22458.23399 | D15: 20661.57527 | E15: 24254.8927 | G15: 59 | H15: 60574.37638 | I15: 55728.42627 | J15: 65420.32649
B16: 10 | C16: 22908.35314 | D16: 21075.68489 | E16: 24741.02139 | G16: 60 | H16: 61788.43832 | I16: 56845.36325 | J16: 66731.51338
B17: 11 | C17: 23367.49381 | D17: 21498.0943 | E17: 25236.89331 | G17: 61 | H17: 63026.83309 | I17: 57984.68644 | J17: 68068.97974
B18: 12 | C18: 23835.8368 | D18: 21928.96986 | E18: =SUM(C18*1.08) -> 25742.70375 | G18: 62 | H18: 64290.04839 | I18: 59146.84452 | J18: 69433.25227
B19: 13 | C19: 24313.56656 | D19: =SUM(C19*0.92) -> 22368.48124 | E19: 26258.65189 | G19: 63 | H19: 65578.58169 | I19: 60332.29515 | J19: 70824.86822
B20: 14 | C20: =SUM(C19*$B$2) -> 24800.87122 | D20: 22816.80152 | E20: 26784.94092 | G20: 64 | H20: 66892.94041 | I20: 61541.50518 | J20: 72244.37565
B21: 15 | C21: =SUM(C20*$B$2) -> 25297.94268 | D21: 23274.10727 | E21: 27321.77809 | G21: 65 | H21: 68233.64217 | I21: 62774.9508 | J21: 73692.33354
B22: 16 | C22: 25804.9767 | D22: 23740.57856 | E22: 27869.37483 | G22: 66 | H22: 69601.21494 | I22: 64033.11775 | J22: 75169.31214
B23: 17 | C23: 26322.17294 | D23: 24216.39911 | E23: 28427.94678 | G23: 67 | H23: 70996.19729 | I23: 65316.50151 | J23: 76675.89308
B24: 18 | C24: 26849.73509 | D24: 24701.75629 | E24: 28997.7139 | G24: 68 | H24: 72419.13858 | I24: 66625.60749 | J24: 78212.66967
B25: 19 | C25: 27387.87091 | D25: 25196.84124 | E25: 29578.90058 | G25: 69 | H25: 73870.59916 | I25: 67960.95123 | J25: 79780.2471
B26: 20 | C26: 27936.79231 | D26: 25701.84893 | E26: 30171.7357 | G26: 70 | H26: 75351.15065 | I26: 69323.0586 | J26: 81379.2427
B27: 21 | C27: 28496.71547 | D27: 26216.97823 | E27: 30776.45271 | G27: 71 | H27: 76861.37608 | I27: 70712.466 | J27: 83010.28617
B28: 22 | C28: 29067.86089 | D28: 26742.43202 | E28: 31393.28976 | G28: 72 | H28: 78401.87021 | I28: 72129.7206 | J28: 84674.01983
B29: 23 | C29: 29650.45349 | D29: 27278.41721 | E29: 32022.48977 | G29: 73 | H29: 79973.2397 | I29: 73575.38052 | J29: 86371.09887
B30: 24 | C30: 30244.72271 | D30: 27825.14489 | E30: 32664.30052 | G30: 74 | H30: 81576.10336 | I30: 75050.01509 | J30: 88102.19162
B31: 25 | C31: 30850.90256 | D31: 28382.83036 | E31: 33318.97477 | G31: 75 | H31: 83211.09241 | I31: 76554.20501 | J31: 89867.9798
B32: 26 | C32: 31469.23178 | D32: 28951.69323 | E32: 33986.77032 | G32: 76 | H32: 84878.85073 | I32: 78088.54267 | J32: 91669.15878
B33: 27 | C33: 32099.95385 | D33: 29531.95755 | E33: 34667.95016 | G33: 77 | H33: 86580.03509 | I33: 79653.63228 | J33: 93506.4379
B34: 28 | C34: 32743.31718 | D34: 30123.85181 | E34: 35362.78255 | G34: 78 | H34: 88315.31545 | I34: 81250.09021 | J34: 95380.54068
B35: 29 | C35: 33399.57511 | D35: 30727.60911 | E35: 36071.54112 | G35: 79 | H35: 90085.37516 | I35: 82878.54514 | J35: 97292.20517
B36: 30 | C36: 34068.9861 | D36: 31343.46721 | E36: 36794.50499 | G36: 80 | H36: 91890.91129 | I36: 84539.63838 | J36: 99242.18419
B37: 31 | C37: 34751.81375 | D37: 31971.66865 | E37: 37531.95885 | G37: 81 | H37: 93732.63488 | I37: 86234.02409 | J37: 101231.2457
B38: 32 | C38: 35448.32698 | D38: 32612.46082 | E38: 38284.19314 | G38: 82 | H38: 95611.27121 | I38: 87962.36951 | J38: 103260.1729
B39: 33 | C39: 36158.80007 | D39: 33266.09607 | E39: 39051.50408 | G39: 83 | H39: 97527.56011 | I39: 89725.3553 | J39: 105329.7649
B40: 34 | C40: 36883.51282 | D40: 33932.8318 | E40: 39834.19385 | G40: 84 | H40: 99482.25624 | I40: 91523.67574 | J40: 107440.8367
B41: 35 | C41: 37622.75063 | D41: 34612.93058 | E41: 40632.57068 | G41: 85 | H41: 101476.1294 | I41: 93358.03901 | J41: 109594.2197
B42: 36 | C42: 38376.80461 | D42: 35306.66024 | E42: 41446.94898 | G42: 86 | H42: 103509.9647 | I42: 95229.16751 | J42: 111790.7619
B43: 37 | C43: 39145.97172 | D43: 36014.29398 | E43: 42277.64945 | G43: 87 | H43: 105584.5631 | I43: 97137.7981 | J43: 114031.3282
B44: 38 | C44: 39930.55485 | D44: 36736.11047 | E44: 43124.99924 | G44: 88 | H44: 107700.7418 | I44: 99084.68241 | J44: 116316.8011
B45: 39 | C45: 40730.863 | D45: 37472.39396 | E45: 43989.33204 | G45: 89 | H45: 109859.3339 | I45: 101070.5872 | J45: 118648.0806
B46: 40 | C46: 41547.21132 | D46: 38223.43441 | E46: 44870.98823 | G46: 90 | H46: 112061.1896 | I46: 103096.2944 | J46: 121026.0847
B47: 41 | C47: 42379.9213 | D47: 38989.5276 | E47: 45770.31501 | G47: 91 | H47: 114307.176 | I47: 105162.6019 | J47: 123451.75
B48: 42 | C48: 43229.32088 | D48: 39770.97521 | E48: 46687.66655 | G48: 92 | H48: 116598.1775 | I48: 107270.3233 | J48: 125926.0317
B49: 43 | C49: 44095.74454 | D49: 40568.08498 | E49: 47623.4041 | G49: 93 | H49: 118935.0965 | I49: 109420.2888 | J49: 128449.9042
B50: 44 | C50: 44979.5335 | D50: 41381.17082 | E50: 48577.89618 | G50: 94 | H50: 121318.8532 | I50: 111613.3449 | J50: 131024.3614
B51: 45 | C51: 45881.0358 | D51: 42210.55294 | E51: 49551.51866 | G51: 95 | H51: 123750.3863 | I51: 113850.3554 | J51: 133650.4172
B52: 46 | C52: 46800.60646 | D52: 43056.55794 | E52: 50544.65498 | G52: 96 | H52: 126230.6534 | I52: 116132.2011 | J52: 136329.1057
B53: 47 | C53: 47738.60762 | D53: 43919.51901 | E53: 51557.69622 | G53: 97 | H53: 128760.6313 | I53: 118459.7808 | J53: =SUM(H53*1.08) -> 139061.4818
B54: 48 | C54: 48695.40866 | D54: 44799.77597 | E54: 52591.04135 | G54: 98 | H54: 131341.3162 | I54: 120834.0109 | J54: =SUM(H54*1.08) -> 141848.6215
B55: 49 | C55: 49671.38639 | D55: 45697.67548 | E55: 53645.0973 | G55: 99 | H55: 133973.7246 | I55: 123255.8266 | J55: =SUM(H55*1.08) -> 144691.6225
B56: 50 | C56: 50666.92515 | D56: 46613.57114 | E56: 54720.27916 | F56: GS15/10 | G56: 100 | H56: 136658.8929 | I56: 125726.1815 | J56: =SUM(H56*1.08) -> 147591.6044
G59: Yes
B60: BroadBand | C60: NH | D60: NJ | E60: NK | G60: No
B61: 1 | C61: 33629 | D61: 33629 | E61: 33629
B62: 2 | C62: 68983 | D62: 51623 | E62: 46609
B63: 3 | C63: 98317 | D63: 68983 | E63: 62787
B64: 4 | C64: 136659 | D64: 98317

Sheet Salary Ranges
B2: 2018 Broadband Salary Ranges
B3: Business and Technical Management Professional (NH)
B4: I $18,785-$33,629 (GS 1-4) | C4: II $28,945-$68,983 (GS 5-11) | D4: III $63,600-$98,317 (GS 12-13) | E4: IV $89370-$136,659 (GS 14-15)
B5: Technical Management Support (NJ)
B6: I $18,785-$33,629 (GS 1-4) | C6: II $28,945-$51,623 (GS 5-8) | D6: III $43,857-$68,983 (GS 9-11) | E6: IV $63,600-$98,317 (GS 12-13)
B7: Administrative Support (NK)
B8: I $18,785-$33,629 (GS 1-4) | C8: II $28,945-$46,609 (GS 5-7) | D8: III $39,707-$62,787 (GS 8-10) | E8: 2018 Broadband Scale (w/o Locality Pay)
